Cogmind - Beta 13 @@@ ROGUE MODE // 2024.07.05 @ 16:14:53 Player: Phosphophyllite Result: Destroyed by H-55 Commando with Gauss Rifle Performance ------------- Evolutions (3) 1500 Regions Visited (5) 1000 Robots Destroyed (30) 150 Value Destroyed (579) 579 Prototype IDs (2) 40 Alien Tech Used (0) 0 Bonus (68) 68 TOTAL SCORE: 3337 Bonus ------- Follower Combat Kills 68 Cogmind --------- Core Integrity 0/700 Matter 299/300 Energy 99/100 System Corruption 2% Temperature Cool (0) Movement Core (50) Location -7/Factory Parts ------- > --- POWER (2) -------- (None) > --- PROPULSION (4) --- (None) > --- UTILITY (4) ------ (None) > --- WEAPON (3) ------- (None) > --- INVENTORY (5) ---- Experimental Sensor Array Weapon Shielding Pulse Rifle Light Assault Rifle Minigun Peak State ------------ > --- POWER ------------ Light Nuclear Core Light Nuclear Core > --- PROPULSION ------- Aluminum Leg Aluminum Leg Aluminum Leg Aluminum Leg > --- UTILITY ---------- Medium Storage Unit Improved Sensor Array Terrain Scan Processor Salvage Targeting Computer > --- WEAPON ----------- Katana > --- INVENTORY -------- Light Nuclear Core Wheel Small Storage Unit Experimental Sensor Array Weapon Shielding Pulse Rifle Light Assault Rifle Minigun Makeshift Spear [Rating: 23] Favorites ----------- Power Improved Ion Engine Engine Improved Ion Engine Power Core Light Nuclear Core Propulsion Light Treads Treads Light Treads Leg Aluminum Leg Wheel Wheel Flight Unit Flight Unit Utility Medium Storage Unit Device Improved Terrain Scanner Storage Medium Storage Unit Processor Terrain Scan Processor Weapon Particle Cannon Energy Gun Improved Medium Laser Energy Cannon Particle Cannon Ballistic Gun Autogun Ballistic Cannon Light Cannon Special Weapon Mining Laser Slashing Weapon Katana Piercing Weapon Makeshift Spear Build | -11 -10 -9 -9 -8 -7 ------- Run | Yrd Mat Mat Min Mat Fac Slots Evolved 6 | . . 2 . 2 2 Power 1 | . . . . . 1 Propulsion 2 | . . . . 1 1 Utility 2 | . . 1 . 1 . Weapon 1 | . . 1 . . . Parts Attached 49 | 10 2 5 3 10 19 Power 8 | 2 . 1 1 . 4 Engine 4 | 2 . 1 1 . . Core 4 | . . . . . 4 Reactor . | . . . . . . Propulsion 12 | 2 . 1 . 3 6 Treads 3 | 2 . 1 . . . Leg 4 | . . . . . 4 Wheel 1 | . . . . . 1 Hover . | . . . . . . Flight 4 | . . . . 3 1 Utility 13 | 4 1 1 . 2 5 Device 7 | 3 . 1 . . 3 Storage 4 | 1 1 . . 1 1 Processor 2 | . . . . 1 1 Hackware . | . . . . . . Protection . | . . . . . . Artifact . | . . . . . . Weapon 16 | 2 1 2 2 5 4 Energy Gun 1 | . . . 1 . . Energy Cannon 1 | . . 1 . . . Ballistic Gun 5 | 2 . 1 . 1 1 Ballistic Cannon 2 | . 1 . 1 . . Launcher . | . . . . . . Special Weapon 2 | . . . . 2 . Impact Weapon . | . . . . . . Slashing Weapon 1 | . . . . . 1 Piercing Weapon 4 | . . . . 2 2 Special Melee Weapon . | . . . . . . Unidentified Prototypes 2 | . . . 1 . 1 Parts Lost 19 | . . 1 . 6 12 Power 4 | . . . . 1 3 Propulsion 9 | . . . . 2 7 Utility 2 | . . . . 1 1 Weapon 4 | . . 1 . 2 1 Highest Loss Streak 9 | . . 1 . 4 9 To Critical Strikes . | . . . . . . Average Slot Usage (%) 78 | . 100 91 99 83 43 Engine 7 | . 14 11 11 8 . Core 1 | . . . . . 5 Treads 14 | . 28 22 22 15 . Leg 2 | . . . . . 7 Flight 1 | . . . . . 4 Device 13 | . 14 19 22 16 3 Storage 9 | . 14 11 11 9 5 Processor 5 | . . . . 9 12 Energy Cannon 4 | . . 1 11 7 . Ballistic Gun 8 | . 19 14 11 5 . Ballistic Cannon 4 | . 8 11 10 . . Special Weapon 1 | . . . . 3 . Piercing Weapon 2 | . . . . 7 . Naked Turns 96 | . . . . . 96 Heaviest Build 29 | 14 21 27 29 29 23 Greatest Support 40 | 40 40 40 40 40 40 Greatest Overweight (x) 7 | . . . . 7 3 Average Overweight (x) . | . . . . . . Largest Inventory Capacity 10 | 8 10 10 10 10 10 Average Capacity 9 | 7 8 10 10 10 9 Most Carried 10 | 8 8 10 10 10 10 Average Carried 8 | 5 7 8 9 9 8 Final Capacity 10 | 8 10 10 10 10 5 Final Carried 10 | 7 8 10 10 9 5 Class Distribution -------------------- 38% | Scavenger-Mutant 35% | Mutant 18% | Scavenger-Skirmisher 7% | Skirmisher Dominant Class ---------------- Mutant | -10/Materials Mutant | -9/Materials Scavenger-Skirmisher | -9/Mines Scavenger-Mutant | -8/Materials Scavenger-Mutant | -7/Factory Resources | -11 -10 -9 -9 -8 -7 ----------- Run | Yrd Mat Mat Min Mat Fac Matter Collected 1069 | 312 52 191 157 93 264 Remotely . | . . . . . . Salvage Created 1209 | 108 56 306 25 381 333 Parts 58 | 2 2 18 . 21 15 Haulers Intercepted 2 | . 1 1 . . . Recyclers Shooed . | . . . . . . Parts Field Recycled . | . . . . . . Retrieved Matter . | . . . . . . Parts Self-Destructed . | . . . . . . Prevented . | . . . . . . Kills | -11 -10 -9 -9 -8 -7 ------- Run | Yrd Mat Mat Min Mat Fac Combat Hostiles Destroyed 21 | . . 7 2 8 4 Melee 4 | . . . . . 4 Guns 7 | . . 2 1 4 . Cannons 10 | . . 5 1 4 . Classes Destroyed 9 | 2 1 3 1 2 . Builder 1 | . . . . 1 . Tunneler 1 | 1 . . . . . Hauler 2 | . 1 1 . . . Recycler 7 | 1 . 1 . 3 2 Swarmer 10 | . . 3 . 7 . Grunt 6 | . . 2 . . 4 Sentry 2 | . . 2 . . . Hunter 1 | . . . . 1 . Assembled 2 | . . . 2 . . Best Kill Streak 5 | 2 1 4 2 5 3 Combat Bots Only 5 | . . 4 2 5 2 Max Kills in Single Turn 2 | 1 1 2 1 1 1 Gunslinging . | . . . . . . Exploded . | . . . . . . Melee 1 | . . . . . 1 Uniques/NPCs Destroyed . | . . . . . . Combat | -11 -10 -9 -9 -8 -7 -------- Run | Yrd Mat Mat Min Mat Fac Hostile Shots Fired 376 | . . 58 5 101 212 Missed 140 | . . 17 2 28 93 Damage Taken 2621 | . . 551 40 629 1401 Core 895 | . . 50 . 142 703 Absorbed by Shields . | . . . . . . Core Remaining (%) 90 | 100 100 . 87 74 . Volleys Fired 85 | 3 8 28 2 44 . Largest 3 | 2 2 3 3 2 . Hottest 168 | 40 55 126 126 168 . Shots Fired 153 | 6 16 66 6 59 . Gun 82 | 6 8 37 2 29 . Cannon 60 | . 8 29 4 19 . Launcher . | . . . . . . Special 11 | . . . . 11 . Kinetic 120 | 6 16 65 4 29 . Thermal 33 | . . 1 2 30 . Explosive . | . . . . . . Electromagnetic . | . . . . . . Robot Hit Streak 11 | 4 2 11 2 6 . Robot Miss Streak 4 | 1 4 2 3 2 . Penetration Max . | . . . . . . Secondary Targets . | . . . . . . Shots Hit Robots 78 | 5 5 36 3 15 14 Core Hits 41 | 4 1 12 3 12 9 Critical Kills . | . . . . . . Critical Parts Destroyed . | . . . . . . Critical Strikes 4 | . . 3 . . 1 Blast 3 | . . 3 . . . Sever 1 | . . . . . 1 Melee Attacks 20 | . . . . . 20 Impact . | . . . . . . Slashing 17 | . . . . . 17 Piercing 3 | . . . . . 3 Sneak Attacks 3 | . . . . . 3 Combat Hostiles . | . . . . . . Follow-up Attacks . | . . . . . . Damage Inflicted 1631 | 41 82 620 46 312 530 Guns 421 | 41 13 279 29 59 . Cannons 632 | . 69 341 17 205 . Explosions . | . . . . . . Melee 530 | . . . . . 530 Ramming . | . . . . . . Kinetic 827 | 41 82 599 46 59 . Thermal 274 | . . 21 . 253 . Explosive . | . . . . . . Electromagnetic . | . . . . . . Impact . | . . . . . . Slashing 530 | . . . . . 530 Piercing . | . . . . . . Highest Corruption 5 | . . . . 5 2 Average Corruption 4 | . . . . 4 1 Corruption Purged . | . . . . . . Corruption Blocked . | . . . . . . Effects 14 | . . . . 10 4 Message Errors 4 | . . . . 2 2 Matter Fused 2 | . . . . 1 1 Heat Flow Errors 2 | . . . . 2 . Energy Discharges 1 | . . . . 1 . Parts Rejected 2 | . . . . 2 . Data Loss (minor) 1 | . . . . 1 . Data Loss (major) 2 | . . . . 1 1 Overload Shots . | . . . . . . Overflow Damage 52 | . 4 11 . . 37 Projectiles 15 | . 4 11 . . . Explosions . | . . . . . . Melee 37 | . . . . . 37 Knockbacks 2 | . 1 1 . . . Impact . | . . . . . . Kinetic 2 | . 1 1 . . . Secondary . | . . . . . . Self-Inflicted Damage . | . . . . . . Shots . | . . . . . . Rammed . | . . . . . . Targets Rammed . | . . . . . . Kicked . | . . . . . . Crushed . | . . . . . . Highest Temperature 247 | . . 63 78 247 25 Average Temperature 39 | . . 16 42 57 12 Received Heat Transfer 630 | . . 114 . 18 498 Siege Activations . | . . . . . . Robots Corrupted . | . . . . . . Combat Hostiles . | . . . . . . Parts Fried . | . . . . . . Impact Corruptions . | . . . . . . Robots Melted . | . . . . . . Combat Hostiles . | . . . . . . Parts Melted 2 | . . . . 2 . Heat Transferred 507 | . . 37 . 470 . Parts Sabotaged . | . . . . . . Parts Stolen . | . . . . . . Parts Stripped . | . . . . . . Power Chain Reactions . | . . . . . . Alert | -11 -10 -9 -9 -8 -7 ------- Run | Yrd Mat Mat Min Mat Fac Peak Influence 244 | 10 43 244 94 191 165 Initial 94 | . 6 17 94 34 45 Average 77 | 5 24 162 90 69 75 Maximum Alert Level 1 | . . 1 . . . Low Security (%) 95 | 100 100 65 100 100 100 Level 1 4 | . . 34 . . . Level 2 . | . . . . . . Level 3 . | . . . . . . Level 4 . | . . . . . . Level 5 . | . . . . . . High Security . | . . . . . . Max Security . | . . . . . . Squads Dispatched 5 | . . 3 . . 2 Investigation . | . . . . . . Extermination 1 | . . . . . 1 Reinforcement 4 | . . 3 . . 1 Assault . | . . . . . . Garrison . | . . . . . . Intercept . | . . . . . . Searches Triggered . | . . . . . . Construction Impeded . | . . . . . . Haulers Reinforced . | . . . . . . Active Scanning Responses . | . . . . . . Cargo Convoy Interrupts . | . . . . . . Stealth | -11 -10 -9 -9 -8 -7 --------- Run | Yrd Mat Mat Min Mat Fac Distress Signals 5 | . . 2 . 2 1 Communications Jammed . | . . . . . . Distress Signals . | . . . . . . Times Spotted 55 | . 1 18 5 15 16 Peak Tracking Total 8 | . 1 8 3 4 5 Tactical Retreats 4 | . . . . . 4 Traps | -11 -10 -9 -9 -8 -7 ------- Run | Yrd Mat Mat Min Mat Fac Traps Triggered 4 | . . . . 3 1 Indirectly . | . . . . . . Trap Hack Attempts . | . . . . . . Triggered . | . . . . . . Disarmed . | . . . . . . Reprogrammed . | . . . . . . Reused . | . . . . . . Traps Extracted . | . . . . . . Installed . | . . . . . . Triggered . | . . . . . . Machines | -11 -10 -9 -9 -8 -7 ---------- Run | Yrd Mat Mat Min Mat Fac Machines Disabled 2 | . 1 . . 1 . Max in Single Turn 1 | . 1 . . 1 . Garrison Access 1 | . . . . . 1 Machines Repaired . | . . . . . . Machines Dismantled . | . . . . . . Machines Sabotaged . | . . . . . . Overloaded Fab Kills . | . . . . . . Hacking | -11 -10 -9 -9 -8 -7 --------- Run | Yrd Mat Mat Min Mat Fac Machines Accessed 3 | . . . . 1 2 Terminals 2 | . . . . 1 1 Fabricators . | . . . . . . Repair Stations . | . . . . . . Recycling Units . | . . . . . . Scanalyzers . | . . . . . . Garrison Access 1 | . . . . . 1 Total Hacks 6 | . . . . 1 5 Successful 4 | . . . . 1 3 Failed 2 | . . . . . 2 Catastrophic . | . . . . . . Database Lockouts . | . . . . . . Manual 3 | . . . . 1 2 Terminals 5 | . . . . 1 4 Fabricators . | . . . . . . Repair Stations . | . . . . . . Recycling Units . | . . . . . . Scanalyzers . | . . . . . . Garrison Access 1 | . . . . . 1 Terminal Hacks 2 | . . . . . 2 Record 1 | . . . . . 1 Alert Level 1 | . . . . . 1 Fabricator Hacks . | . . . . . . Repair Station Hacks . | . . . . . . Recycling Unit Hacks . | . . . . . . Scanalyzer . | . . . . . . Garrison Access Hacks 1 | . . . . . 1 Seal Access 1 | . . . . . 1 Unauthorized Hacks 1 | . . . . 1 . Terminals 1 | . . . . 1 . Botnet 1 | . . . . 1 . Fabricators . | . . . . . . Repair Stations . | . . . . . . Recycling Units . | . . . . . . Scanalyzers . | . . . . . . Garrison Access . | . . . . . . Data Cores Recovered . | . . . . . . Used . | . . . . . . Hacking Detections 2 | . . . . 1 1 Full Trace Events . | . . . . . . Feedback Events . | . . . . . . Feedback Blocked . | . . . . . . Robot Schematics Acquired . | . . . . . . Robots Built . | . . . . . . Authchips . | . . . . . . Time . | . . . . . . Total Robot Build Rating . | . . . . . . Part Schematics Acquired . | . . . . . . Parts Built . | . . . . . . Authchips . | . . . . . . Time . | . . . . . . Total Part Build Rating . | . . . . . . Parts Repaired . | . . . . . . Time . | . . . . . . Parts Recycled . | . . . . . . Recycled Matter . | . . . . . . Retrieved Matter . | . . . . . . Retrieved Components . | . . . . . . Parts Scanalyzed . | . . . . . . Part Schematics Acquired . | . . . . . . Parts Damaged . | . . . . . . Bothacking | -11 -10 -9 -9 -8 -7 ------------ Run | Yrd Mat Mat Min Mat Fac Used RIF Installer . | . . . . . . Robots Hacked . | . . . . . . Non-combat . | . . . . . . Combat . | . . . . . . Robot Hacks Applied . | . . . . . . Relay Couplers Released . | . . . . . . Fabnet Peak Effective % . | . . . . . . Robots Rewired . | . . . . . . Allies Hacked . | . . . . . . Hacks Repelled . | . . . . . . Allies | -11 -10 -9 -9 -8 -7 -------- Run | Yrd Mat Mat Min Mat Fac Total Allies 5 | . . . 5 . . Largest Group 5 | . . . 5 4 . Highest-Rated Group 84 | . . . 84 68 . Highest-Rated Ally 31 | . . . 31 31 . Total Orders . | . . . . . . Ally Attacks 46 | . . . 15 31 . Total Damage 592 | . . . 250 342 . Kills 6 | . . . 4 2 . Allies Corrupted . | . . . . . . Allies Melted . | . . . . . . Intel | -11 -10 -9 -9 -8 -7 ------- Run | Yrd Mat Mat Min Mat Fac Robot Analysis Total . | . . . . . . Derelict Logs Recovered . | . . . . . . Drone Launches . | . . . . . . Drone Recoveries . | . . . . . . Exploration | -11 -10 -9 -9 -8 -7 ------------- Run | Yrd Mat Mat Min Mat Fac Turns Passed 2097 | 171 220 290 332 574 510 Spaces Moved 1312 | 103 118 121 192 287 491 Core 256 | 25 . . . 9 222 Treads 743 | 78 118 121 192 234 . Legs 97 | . . . . . 97 Wheels 11 | . . . . . 11 Hover . | . . . . . . Flight 205 | . . . . 44 161 Fastest Speed 34 | 50 160 160 160 34 34 Average Speed 123 | 133 160 160 160 146 76 Slowest Speed 400 | 160 160 160 160 400 200 Overloaded Moves . | . . . . . . Propulsion Burnouts . | . . . . . . Robots Hopped 1 | . . . . . 1 Cave-ins Triggered . | . . . . . . Exploration Rate (%) 23 | 6 26 17 44 30 20 Regions Visited 5 Branch Regions 1 Pre-discovered Areas . | . . . . . . Known Exits Taken . | . . . . . . Unknown Exits Taken 5 | 1 1 1 1 1 . Scrap Searched . | . . . . . . Spaces Dug 8 | . . . . 8 . Terrain Destroyed 8 | . . . . 8 . Melee . | . . . . . . Projectile 8 | . . . . 8 . AOE . | . . . . . . Terrain Rammed . | . . . . . . Walls Destroyed . | . . . . . . Machines Disabled . | . . . . . . Actions | -11 -10 -9 -9 -8 -7 --------- Run | Yrd Mat Mat Min Mat Fac Total 1617 | 133 134 164 216 369 601 Wait 77 | . . 4 6 11 56 Move 1305 | 102 117 120 191 286 489 Hop 1 | . . . . . 1 Pick Up 47 | 14 4 6 6 9 8 Fast Attach 3 | 1 . . 1 1 . Attach 42 | 9 1 3 2 9 18 Detach 15 | 3 . . 1 3 8 Swap 4 | . 1 2 . . 1 Drop 18 | 1 3 1 7 6 . Fire 85 | 3 8 28 2 44 . Melee 20 | . . . . . 20 Ram . | . . . . . . Kick . | . . . . . . Crush . | . . . . . . Escape Stasis . | . . . . . . Rewire . | . . . . . . Trap . | . . . . . . Miscellaneous . | . . . . . . Route ------- -11/Scrapyard -10/Materials -9/Materials -9/Mines -8/Materials -7/Factory History --------- Turn | Location | Event 11 | -11/Scrapyard | Discovered new exit (range 16) 172 | -11/Scrapyard | Entered Materials 305 | -10/Materials | Build established: Mutant 356 | -10/Materials | Discovered new exit (range 9) 392 | -10/Materials | Entered another Materials area 392 | -9/Materials | Evolved 2 slots: Utility x1, Weapon x1 658 | -9/Materials | Discovered new exit (range 16) 682 | -9/Materials | Entered Mines 702 | -9/Mines | Joined a pair of Derelicts in attacking an 0b10 outpost 771 | -9/Mines | Found a damaged Exp. Sensor Array with a note attached 774 | -9/Mines | Found Prototype Device 818 | -9/Mines | Assisted by bots powering up and referring to "LRC-V3" 888 | -9/Mines | Assembled infested the area 985 | -9/Mines | Discovered new exit (range 10) 1014 | -9/Mines | Entered Materials 1014 | -8/Materials | Accompanied by 4 allies 1014 | -8/Materials | Evolved 2 slots: Propulsion x1, Utility x1 1019 | -8/Materials | Led the pair of lost Derelicts to an unsafe place 1035 | -8/Materials | Build established: Scavenger-Skirmisher 1358 | -8/Materials | Build established: Scavenger-Mutant 1534 | -8/Materials | Lost 4 parts (2n1u1w) 1585 | -8/Materials | Discovered new exit (range 5) 1588 | -8/Materials | Entered Factory 1588 | -7/Factory | Evolved 2 slots: Power x1, Propulsion x1 1616 | -7/Factory | Identified Exp. Sensor Array 1724 | -7/Factory | Lost 3 parts (3n) 1938 | -7/Factory | Core integrity fell below 50% 1991 | -7/Factory | Core integrity fell below 20% 2002 | -7/Factory | Released all parts (4) 2013 | -7/Factory | Lost 9 parts (3p4n1u1w) 2098 | -7/Factory | Destroyed by H-55 Commando with Gauss Rifle Last Messages --------------- 02002_ Released Salvage Targeting Computer. 02002_ Released Med. Storage Unit. 02002_ Released Terrain Scan Processor. 02002_ Released Mak. Spear. 02003_ Penetrated by Slug. 02006_ TYGWY:NRAGJEG6F&FIG7EEUE0WOG 02006_ Matter Pump disabled. 02006_ U-05 Engineer destroyed. 02006_ K-01 Serf collects debris. 02011_ K-01 Serf cleans the Matter Pump. 02016_ Slug penetrates Matter Pump. 02016_ Matter Pump disabled. 02018_ K-01 Serf cleans the Terminal. 02019_ K-01 Serf collects debris. 02020_ K-01 Serf cleans the Terminal. 02061_ System corrupted: Substantial component data lost. 02081_ O-24 Administrator: "IFF HANDSHAKE FAILED. SECURING TERMINAL." 02087_ ALERT: Hostiles spotted, dispatching reinforcements to Terminal F014. 02098_ Penetrated by Slug. Map ----- +----------------------------------------------------+ | ??????????????????????????????? | | ??????????????????????????????? | | ??????????????????????????????? | | ??????????????????????????????? | | ??????????????????????????????? | | ??????????????????????????????? | | ??????????????????????????????? | | ??????????????????????????????? | | ??????????????????????????????? | | ??????????????????????????????? | | ??????+???????????????????????? | | ?????? ???????????????????????? | | ?????? ???????????????????????? | | ?????? ?????? ???????????????? | | ?????? ????? ????????????????? | | ?????? #####w#????????????????? | | ?????? #????????????????? | | ?????# #????????????????? | | ?????# h#????????????????? | | ?????# #????????????????? | | ?????# #????????????????? | | ?????# #????????????????? | | ?????# #????????????????? | | ?????# #????????????????? | | ?????# #????????????????? | | ?????#@ #????????????????? | | ?????# #????????????????? | | ?????# #########????????? | | ?????# ????????? | | ?????# #??????????? | | ?????# #??????????? | | ????## #??????????? | | ????#" #??????????? | | ????#" #??????????? | | ????#" !!! #?????????## | | ????#T !!! ###########T | | ????#" !!! | | ????#"o | | ????#" | | ????## """"""""" | | ?????# """"""""" | | ?????# """"""""" | | ?????# """"""""" | | ?????# """"""""" # | | ?????# """"""""" # | | ?????# # | | ?????+ # | | ?????# ]* # | | ?????# !* # | | ?????+ ! # | +----------------------------------------------------+ Best States ------------- Heat Dissipation 34 Energy Generation 23 Energy Capacity 265 Matter Stores 300 Matter Capacity 300 Sight Range 16 Robot Scan Range 20 Terrain Scan Range 16 Terrain Scan Density 85 Evasion (%) 63 Recoil Reduction 2 Salvage Targeting 1 Item Schematics ----------------- None Robot Schematics ------------------ None Fabricated ------------ Nothing Alien Tech Used ----------------- None Achievements -------------- None Challenges ------------ None Game ------ Seed MetafieldHypercooledWand Manual? 0 Play Time 00:47:48 Cumulative 19.7 hours Start 2024.07.05 @ 15:20:13 End 2024.07.05 @ 16:14:53 Sessions 1 Manual Loads 0 Difficulty Rogue Special Mode None Game No. 28 Rogue 28 Adventurer 0 Explorer 0 Win Type - Total 0 Types 0/0/0/0/0/0/0/0/0 Lore% 18 Gallery% 27 Achievement% 19 Wizard Run 0 Options --------- Layout 0 ASCII 0 Keyboard 1 Movement Numpad Keybinds 0 Fullscreen 1 Font 24/Smallcaps Map View 76x50 Zoom Use 0% Tactical HUD 1 Map Filters NONE Filters NONE Steam 1 RUN: a4c37f81-2281-4b39-b104-cd6fd999e52c